[Event "EYCC Open-U12 2019"]
[Site "Bratislava"]
[Date "2019.08.09"]
[Round "8.4"]
[White "Vergara Anton, Diego"]
[Black "Vagman, Roy"]
[Result "0-1"]
[ECO "A49"]
[WhiteElo "2183"]
[BlackElo "1941"]
[Annotator "NA"]
[PlyCount "94"]
[EventDate "2019.08.02"]
[EventType "swiss"]
[EventCountry "SVK"]
[SourceTitle "playchess.com"]
[Source "ChessBase"]
[SourceQuality "1"]
[TimeControl "40/5400+30:1800+30"]

1. d4 {[%emt 0:00:00]} Nf6 {[%emt 0:00:00]} 2. Nf3 {[%emt 0:00:00]} g6 {[%emt 0:00:00]} 3. g3 {[%emt 0:00:19]} Bg7 {[%emt 0:00:26]} 4. Bg2 {[%emt 0:01:16]} d5 {[%emt 0:00:43]} 5. O-O {[%emt 0:01:48]} O-O {[%emt 0:01:07]} 6. Nbd2 {[%emt 0:01:21]} c5 {[%emt 0:05:06]} 7. dxc5 {[%emt 0:00:42]} Nbd7 {[%emt 0:02:57]} 8. Nb3 {[%emt 0:00:47]} e6 {[%emt 0:04:37]} 9. c3 {[%emt 0:03:21]} Qe7 {[%emt 0:02:00]} 10. h3 {[%emt 0:06:22]} Nxc5 {[%emt 0:03:12]} 11. Nxc5 {[%emt 0:02:20]} Qxc5 {[%emt 0:00:17]} 12. Be3 {[%emt 0:00:29]} Qe7 {[%emt 0:01:26]} 13. Bd4 {[%emt 0:03:50]} Ne4 {[%emt 0:11:14]} 14. Bxg7 {[%emt 0:01:37]} Kxg7 {[%emt 0:00:12]} 15. Qd4+ {[%emt 0:05:07]} Qf6 {[%emt 0:02:18]} 16. Rfd1 {[%emt 0:05:53]} Nd6 {[%emt 0:01:33]} 17. Ne5 {[%emt 0:03:28]} Nf5 {[%emt 0:01:34]} 18. Ng4 {[%emt 0:09:43]} Nxd4 {[%emt 0:00:18]} 19. Nxf6 {[%emt 0:00:06]} Nxe2+ {[%emt 0:00:22]} 20. Kf1 {[%emt 0:00:42]} Nxg3+ {[%emt 0:13:18]} 21. fxg3 {[%emt 0:00:04]} Kxf6 {[%emt 0:00:21]} 22. c4 {[%emt 0:00:29]} Rd8 {[%emt 0:00:55]} 23. cxd5 {[%emt 0:00:49]} exd5 {[%emt 0:02:36]} 24. Rac1 {[%emt 0:00:27]} Bd7 {[%emt 0:01:40]} 25. Rc5 {[%emt 0:08:28]} Be6 {[%emt 0:07:24]} 26. Rc7 {[%emt 0:03:11]} b6 {[%emt 0:00:34]} 27. g4 {[%emt 0:03:23]} Rdc8 {[%emt 0:01:22]} 28. Rxc8 {[%emt 0:04:18]} Rxc8 {[%emt 0:01:09]} 29. Bxd5 {[%emt 0:00:33]} Rd8 {[%emt 0:01:15]} 30. Bf3 {[%emt 0:01:53]} Rxd1+ {[%emt 0:00:06]} 31. Bxd1 {[%emt 0:00:07]} Bxa2 {[%emt 0:00:19]} 32. Kf2 {[%emt 0:02:29]} Ke5 {[%emt 0:00:24]} 33. Ke3 {[%emt 0:01:57]} Bd5 {[%emt 0:00:13]} 34. g5 {[%emt 0:01:30]} a5 {[%emt 0:01:11]} 35. Be2 {[%emt 0:03:07]} Bc6 {[%emt 0:00:47]} 36. Bc4 {[%emt 0:01:03]} Bd5 {[%emt 0:01:00]} 37. Be2 {[%emt 0:00:07]} f5 {[%emt 0:03:32]} 38. gxf6 {[%emt 0:02:50]} Kxf6 {[%emt 0:00:08]} 39. Kf4 {[%emt 0:00:50]} g5+ {[%emt 0:01:37]} 40. Kg4 {[%emt 0:00:00]} Be6+ {[%emt 0:00:00]} 41. Kg3 {[%emt 0:02:55]} Ke5 {[%emt 0:00:43]} 42. Bd3 {[%emt 0:00:17]} Bf5 {[%emt 0:00:36]} 43. Be2 {[%emt 0:00:37]} Kd4 {[%emt 0:00:17]} 44. h4 {[%emt 0:00:38]} Ke3 {[%emt 0:00:42]} 45. Bb5 {[%emt 0:00:17]} h6 {[%emt 0:00:36]} 46. hxg5 {[%emt 0:00:46]} hxg5 {[%emt 0:00:14]} 47. Bf1 {[%emt 0:00:05]} Kd2 {[%emt 0:00:24]} 0-1

[Event "EYCC Open-U12 2019"]
[Site "Bratislava"]
[Date "2019.08.09"]
[Round "8.5"]
[White "von Mettenheim, Johannes"]
[Black "Tobak, Mikhail"]
[Result "0-1"]
[ECO "B07"]
[WhiteElo "1809"]
[BlackElo "1943"]
[Annotator "NA"]
[PlyCount "67"]
[EventDate "2019.08.02"]
[EventType "swiss"]
[EventCountry "SVK"]
[SourceTitle "playchess.com"]
[Source "ChessBase"]
[SourceQuality "1"]
[TimeControl "40/5400+30:1800+30"]

1. d4 {[%emt 0:00:00]} d6 {[%emt 0:00:00]} 2. e4 {[%emt 0:00:00]} Nf6 {[%emt 0:00:00]} 3. Nc3 {[%emt 0:00:00]} g6 {[%emt 0:00:01]} 4. f3 {[%emt 0:00:00]} c6 {[%emt 0:00:08]} 5. Be3 {[%emt 0:00:00]} Qb6 {[%emt 0:00:05]} 6. a3 {[%emt 0:11:22]} Bg7 {[%emt 0:00:30]} 7. Bc4 {[%emt 0:03:19]} e5 {[%emt 0:07:52]} 8. Qd2 {[%emt 0:02:31]} Qc7 {[%emt 0:10:29]} 9. Nge2 {[%emt 0:01:22]} Nbd7 {[%emt 0:00:24]} 10. O-O {[%emt 0:11:00]} O-O {[%emt 0:01:05]} 11. Rad1 {[%emt 0:00:55]} Re8 {[%emt 0:09:00]} 12. b4 {[%emt 0:23:32]} b5 {[%emt 0:13:43]} 13. Bb3 {[%emt 0:00:35]} a6 {[%emt 0:01:58]} 14. f4 {[%emt 0:07:04]} exd4 {[%emt 0:06:39]} 15. Bxd4 {[%emt 0:00:07]} c5 {[%emt 0:19:35]} 16. Bxf6 {[%emt 0:00:29]} Nxf6 {[%emt 0:00:59]} 17. bxc5 {[%emt 0:02:18]} Qxc5+ {[%emt 0:01:37]} 18. Kh1 {[%emt 0:00:13]} Be6 {[%emt 0:06:24]} 19. Bxe6 {[%emt 0:11:23]} Rxe6 {[%emt 0:00:10]} 20. f5 {[%emt 0:00:34]} Nxe4 {[%emt 0:02:51]} 21. Nxe4 {[%emt 0:01:47]} Rxe4 {[%emt 0:00:06]} 22. f6 {[%emt 0:02:08]} Bf8 {[%emt 0:02:23]} 23. Nf4 {[%emt 0:04:47]} Bh6 {[%emt 0:02:13]} 24. g3 {[%emt 0:03:58]} Bxf4 {[%emt 0:06:04]} 25. Rxf4 {[%emt 0:00:51]} Rxf4 {[%emt 0:00:15]} 26. Qxf4 {[%emt 0:00:08]} Qxc2 {[%emt 0:00:19]} 27. Rxd6 {[%emt 0:07:32]} Re8 {[%emt 0:00:38]} 28. Rd2 {[%emt 0:01:18]} Qc1+ {[%emt 0:02:02]} 29. Kg2 {[%emt 0:00:10]} Qxa3 {[%emt 0:01:29]} 30. Rd6 {[%emt 0:00:42]} Qa2+ {[%emt 0:02:41]} 31. Kh3 {[%emt 0:00:14]} Qa1 {[%emt 0:01:31]} 32. Qe3 {[%emt 0:05:01]} Qf1+ {[%emt 0:00:50]} 33. Kg4 {[%emt 0:00:29]} Qf5+ {[%emt 0:00:05]} 34. Kh4 {[%emt 0:00:06]} 0-1

[Event "EYCC Open-U12 2019"]
[Site "Bratislava"]
[Date "2019.08.09"]
[Round "8.6"]
[White "Pavesi, Brando"]
[Black "Samadov, Read"]
[Result "0-1"]
[ECO "A45"]
[WhiteElo "2109"]
[BlackElo "2230"]
[Annotator "NA"]
[PlyCount "107"]
[EventDate "2019.08.02"]
[EventType "swiss"]
[EventCountry "SVK"]
[SourceTitle "playchess.com"]
[Source "ChessBase"]
[SourceQuality "1"]
[TimeControl "40/5400+30:1800+30"]

1. d4 {[%emt 0:00:17]} Nf6 {[%emt 0:00:00]} 2. Bf4 {[%emt 0:00:09]} e6 {[%emt 0:00:17]} 3. e3 {[%emt 0:00:33]} c5 {[%emt 0:00:49]} 4. Nf3 {[%emt 0:01:29]} Nc6 {[%emt 0:00:51]} 5. c3 {[%emt 0:01:24]} Nh5 {[%emt 0:04:43]} 6. Bg5 {[%emt 0:07:30]} Qb6 {[%emt 0:03:21]} 7. Qb3 {[%emt 0:05:37]} h6 {[%emt 0:02:37]} 8. Bh4 {[%emt 0:03:24]} g5 {[%emt 0:00:45]} 9. Bg3 {[%emt 0:00:05]} Nxg3 {[%emt 0:00:32]} 10. hxg3 {[%emt 0:00:05]} Bg7 {[%emt 0:00:19]} 11. g4 {[%emt 0:07:13]} d5 {[%emt 0:03:46]} 12. Nbd2 {[%emt 0:13:15]} Bd7 {[%emt 0:04:46]} 13. Be2 {[%emt 0:10:51]} Na5 {[%emt 0:08:32]} 14. Qc2 {[%emt 0:11:00]} Rc8 {[%emt 0:03:39]} 15. Bd3 {[%emt 0:03:35]} a6 {[%emt 0:15:24]} 16. Ne5 {[%emt 0:07:48]} Bxe5 {[%emt 0:07:15]} 17. dxe5 {[%emt 0:00:02]} Nc6 {[%emt 0:00:14]} 18. Nf3 {[%emt 0:03:28]} Qc7 {[%emt 0:04:12]} 19. Nxg5 {[%emt 0:01:45]} Qxe5 {[%emt 0:01:07]} 20. Nf3 {[%emt 0:02:04]} Qg7 {[%emt 0:01:42]} 21. Rh4 {[%emt 0:03:14]} d4 {[%emt 0:08:30]} 22. Rd1 {[%emt 0:10:43]} Ne5 {[%emt 0:09:41]} 23. Nxe5 {[%emt 0:01:33]} Qxe5 {[%emt 0:00:06]} 24. g3 {[%emt 0:02:50]} c4 {[%emt 0:03:05]} 25. Bf1 {[%emt 0:01:36]} d3 {[%emt 0:04:14]} 26. Qd2 {[%emt 0:00:29]} Bc6 {[%emt 0:01:07]} 27. f4 {[%emt 0:00:40]} Qe4 {[%emt 0:01:47]} 28. Qf2 {[%emt 0:00:44]} Rd8 {[%emt 0:00:48]} 29. Rd2 {[%emt 0:00:17]} Qd5 {[%emt 0:05:30]} 30. Rh5 {[%emt 0:00:33]} Qd6 {[%emt 0:01:08]} 31. Bg2 {[%emt 0:00:32]} b5 {[%emt 0:00:41]} 32. Bxc6+ {[%emt 0:00:29]} Qxc6 {[%emt 0:00:01]} 33. Qg2 {[%emt 0:00:23]} Qxg2 {[%emt 0:01:12]} 34. Rxg2 {[%emt 0:00:01]} Rg8 {[%emt 0:00:46]} 35. Rxh6 {[%emt 0:00:14]} Rxg4 {[%emt 0:00:07]} 36. Rh8+ {[%emt 0:01:04]} Ke7 {[%emt 0:00:10]} 37. Rxd8 {[%emt 0:00:33]} Kxd8 {[%emt 0:00:01]} 38. Kd2 {[%emt 0:00:51]} f5 {[%emt 0:00:35]} 39. b4 {[%emt 0:00:31]} Ke7 {[%emt 0:01:00]} 40. Ke1 {[%emt 0:00:00]} Rg8 {[%emt 0:00:00]} 41. Kd1 {[%emt 0:09:31]} Rh8 {[%emt 0:03:45]} 42. Kd2 {[%emt 0:01:41]} Kd6 {[%emt 0:04:41]} 43. g4 {[%emt 0:02:43]} fxg4 {[%emt 0:03:26]} 44. Rxg4 {[%emt 0:00:11]} Rh2+ {[%emt 0:00:26]} 45. Kd1 {[%emt 0:00:17]} Rc2 {[%emt 0:00:49]} 46. f5 {[%emt 0:01:02]} exf5 {[%emt 0:00:12]} 47. Rg6+ {[%emt 0:00:07]} Ke5 {[%emt 0:00:19]} 48. Rxa6 {[%emt 0:00:06]} Rxc3 {[%emt 0:00:07]} 49. Ra5 {[%emt 0:01:39]} Ke4 {[%emt 0:01:22]} 50. Rxb5 {[%emt 0:00:42]} Rc2 {[%emt 0:00:38]} 51. Ra5 {[%emt 0:04:10]} Rb2 {[%emt 0:00:17]} 52. Ra8 {[%emt 0:00:44]} c3 {[%emt 0:00:41]} 53. Re8+ {[%emt 0:00:30]} Kf3 {[%emt 0:00:08]} 54. Rc8 {[%emt 0:00:25]} 0-1

[Event "EYCC Open-U12 2019"]
[Site "Bratislava"]
[Date "2019.08.09"]
[Round "8.7"]
[White "Strybuk, Artsiom I"]
[Black "Kuhn, Clement"]
[Result "1-0"]
[ECO "D71"]
[WhiteElo "2193"]
[BlackElo "1979"]
[Annotator "NA"]
[PlyCount "119"]
[EventDate "2019.08.02"]
[EventType "swiss"]
[EventCountry "SVK"]
[SourceTitle "playchess.com"]
[Source "ChessBase"]
[SourceQuality "1"]
[TimeControl "40/5400+30:1800+30"]

1. d4 {[%emt 0:00:00]} Nf6 {[%emt 0:00:00]} 2. c4 {[%emt 0:00:00]} g6 {[%emt 0:00:00]} 3. g3 {[%emt 0:00:00]} Bg7 {[%emt 0:00:00]} 4. Bg2 {[%emt 0:00:00]} O-O {[%emt 0:00:00]} 5. Nf3 {[%emt 0:00:04]} d6 {[%emt 0:00:08]} 6. O-O {[%emt 0:00:10]} Nc6 {[%emt 0:00:06]} 7. d5 {[%emt 0:01:09]} Na5 {[%emt 0:00:06]} 8. Nfd2 {[%emt 0:01:04]} c5 {[%emt 0:00:08]} 9. Nc3 {[%emt 0:00:09]} a6 {[%emt 0:00:06]} 10. Qc2 {[%emt 0:00:10]} b5 {[%emt 0:00:13]} 11. cxb5 {[%emt 0:03:09]} axb5 {[%emt 0:00:14]} 12. Nxb5 {[%emt 0:00:45]} Qb6 {[%emt 0:00:05]} 13. Nc3 {[%emt 0:01:26]} Bf5 {[%emt 0:00:25]} 14. e4 {[%emt 0:02:57]} Bc8 {[%emt 0:00:06]} 15. Rb1 {[%emt 0:10:17]} Ba6 {[%emt 0:00:21]} 16. Rd1 {[%emt 0:00:27]} Ng4 {[%emt 0:02:13]} 17. Nf3 {[%emt 0:07:10]} Rfb8 {[%emt 0:20:25]} 18. Bd2 {[%emt 0:09:15]} c4 {[%emt 0:13:36]} 19. Be1 {[%emt 0:02:42]} Nb7 {[%emt 0:12:06]} 20. h3 {[%emt 0:04:55]} Ne5 {[%emt 0:00:33]} 21. Nxe5 {[%emt 0:00:25]} Bxe5 {[%emt 0:00:17]} 22. Kh2 {[%emt 0:00:26]} Nc5 {[%emt 0:01:15]} 23. f4 {[%emt 0:00:48]} Bg7 {[%emt 0:00:58]} 24. Bf2 {[%emt 0:01:27]} Qc7 {[%emt 0:09:09]} 25. Bxc5 {[%emt 0:04:07]} Qxc5 {[%emt 0:00:32]} 26. Re1 {[%emt 0:00:47]} Bc8 {[%emt 0:10:41]} 27. Bf1 {[%emt 0:16:37]} Bd7 {[%emt 0:01:37]} 28. Kg2 {[%emt 0:02:09]} Ra7 {[%emt 0:03:03]} 29. Re2 {[%emt 0:04:01]} Rab7 {[%emt 0:00:32]} 30. Nd1 {[%emt 0:06:39]} Bd4 {[%emt 0:05:28]} 31. Kh2 {[%emt 0:09:04]} Rb4 {[%emt 0:04:21]} 32. Nc3 {[%emt 0:03:04]} Qa5 {[%emt 0:01:17]} 33. Rg2 {[%emt 0:04:39]} f5 {[%emt 0:01:54]} 34. a3 {[%emt 0:04:00]} Rb3 {[%emt 0:00:56]} 35. Bxc4 {[%emt 0:00:28]} R3b7 {[%emt 0:00:26]} 36. Nd1 {[%emt 0:00:58]} fxe4 {[%emt 0:01:44]} 37. Qxe4 {[%emt 0:00:13]} Qc5 {[%emt 0:01:51]} 38. Qe2 {[%emt 0:01:09]} Bf5 {[%emt 0:02:02]} 39. b4 {[%emt 0:01:17]} Qc8 {[%emt 0:01:42]} 40. Rb3 {[%emt 0:00:00]} Bxh3 {[%emt 0:00:00]} 41. Ba6 {[%emt 0:03:03]} Qf8 {[%emt 0:12:29]} 42. Bxb7 {[%emt 0:09:45]} Qh6 {[%emt 0:00:42]} 43. Qxe7 {[%emt 0:00:22]} Rxb7 {[%emt 0:10:00]} 44. Qh4 {[%emt 0:00:59]} Qxh4 {[%emt 0:00:14]} 45. gxh4 {[%emt 0:00:03]} Bxg2 {[%emt 0:00:05]} 46. Kxg2 {[%emt 0:00:01]} Rb5 {[%emt 0:01:40]} 47. Kf3 {[%emt 0:01:37]} Bf6 {[%emt 0:00:19]} 48. a4 {[%emt 0:02:55]} Rxd5 {[%emt 0:00:50]} 49. Ne3 {[%emt 0:00:26]} Rd4 {[%emt 0:02:56]} 50. a5 {[%emt 0:03:46]} Bd8 {[%emt 0:01:11]} 51. b5 {[%emt 0:03:31]} Bxa5 {[%emt 0:00:38]} 52. b6 {[%emt 0:00:06]} Bxb6 {[%emt 0:00:02]} 53. Rxb6 {[%emt 0:00:05]} h6 {[%emt 0:01:16]} 54. Rb7 {[%emt 0:01:18]} Kh8 {[%emt 0:00:53]} 55. Ng4 {[%emt 0:01:05]} g5 {[%emt 0:02:03]} 56. fxg5 {[%emt 0:00:31]} hxg5 {[%emt 0:00:09]} 57. hxg5 {[%emt 0:00:04]} Rd1 {[%emt 0:01:50]} 58. Nf6 {[%emt 0:00:17]} Rh1 {[%emt 0:00:10]} 59. Kg2 {[%emt 0:00:13]} Rh4 {[%emt 0:01:40]} 60. g6 1-0

[Event "EYCC Open-U12 2019"]
[Site "Bratislava"]
[Date "2019.08.09"]
[Round "8.8"]
[White "Trost, Edvin"]
[Black "Ozkan, Taha"]
[Result "1/2-1/2"]
[ECO "C18"]
[WhiteElo "2069"]
[BlackElo "2140"]
[Annotator "NA"]
[PlyCount "166"]
[EventDate "2019.08.02"]
[EventType "swiss"]
[EventCountry "SVK"]
[SourceTitle "playchess.com"]
[Source "ChessBase"]
[SourceQuality "1"]
[TimeControl "40/5400+30:1800+30"]

1. e4 {[%emt 0:00:00]} e6 {[%emt 0:00:00]} 2. d4 {[%emt 0:00:00]} d5 {[%emt 0:00:00]} 3. Nc3 {[%emt 0:00:00]} Bb4 {[%emt 0:00:00]} 4. e5 {[%emt 0:00:19]} c5 {[%emt 0:00:00]} 5. a3 {[%emt 0:00:05]} Bxc3+ {[%emt 0:00:00]} 6. bxc3 {[%emt 0:00:00]} Qc7 {[%emt 0:00:00]} 7. Qg4 {[%emt 0:00:27]} f6 {[%emt 0:00:17]} 8. Nf3 {[%emt 0:00:07]} c4 {[%emt 0:00:10]} 9. Be2 {[%emt 0:01:36]} Nc6 {[%emt 0:01:15]} 10. Bf4 {[%emt 0:04:45]} Qf7 {[%emt 0:01:53]} 11. Qg3 {[%emt 0:04:33]} Nge7 {[%emt 0:02:54]} 12. exf6 {[%emt 0:01:49]} gxf6 {[%emt 0:00:34]} 13. Nh4 {[%emt 0:00:19]} Bd7 {[%emt 0:02:02]} 14. O-O {[%emt 0:02:44]} O-O-O {[%emt 0:00:52]} 15. Qe3 {[%emt 0:10:51]} Ng6 {[%emt 0:08:24]} 16. Bg3 {[%emt 0:01:44]} Nce7 {[%emt 0:11:53]} 17. Nxg6 {[%emt 0:01:07]} Nxg6 {[%emt 0:00:24]} 18. Rab1 {[%emt 0:08:02]} Ba4 {[%emt 0:17:22]} 19. Rb4 {[%emt 0:06:12]} Bc6 {[%emt 0:03:20]} 20. Bg4 {[%emt 0:06:34]} Rde8 {[%emt 0:03:45]} 21. Re1 {[%emt 0:00:38]} Bd7 {[%emt 0:01:02]} 22. Bh5 {[%emt 0:01:45]} b6 {[%emt 0:04:27]} 23. Bxg6 {[%emt 0:02:33]} hxg6 {[%emt 0:00:26]} 24. Qf4 {[%emt 0:00:10]} e5 {[%emt 0:02:29]} 25. Rxe5 {[%emt 0:00:52]} Kb7 {[%emt 0:05:32]} 26. Rb1 {[%emt 0:13:34]} Bf5 {[%emt 0:02:44]} 27. Ree1 {[%emt 0:21:19]} Bxc2 {[%emt 0:07:45]} 28. Rbc1 {[%emt 0:01:06]} Rxe1+ {[%emt 0:08:33]} 29. Rxe1 {[%emt 0:00:01]} Re8 {[%emt 0:00:23]} 30. Re3 {[%emt 0:03:46]} Rxe3 {[%emt 0:08:19]} 31. Qxe3 {[%emt 0:00:03]} Bf5 {[%emt 0:01:08]} 32. Bd6 {[%emt 0:01:31]} Kc6 {[%emt 0:03:32]} 33. Qe7 {[%emt 0:01:13]} Qe6 {[%emt 0:04:28]} 34. Qxe6 {[%emt 0:02:09]} Bxe6 {[%emt 0:00:04]} 35. Be7 {[%emt 0:00:10]} Kb5 {[%emt 0:00:44]} 36. Kf1 {[%emt 0:00:16]} Ka4 {[%emt 0:00:39]} 37. Ke2 {[%emt 0:00:03]} Kb3 {[%emt 0:00:29]} 38. Kd2 {[%emt 0:00:05]} Bf5 {[%emt 0:00:36]} 39. h4 {[%emt 0:00:31]} Bd3 {[%emt 0:00:25]} 40. g3 {[%emt 0:00:00]} f5 {[%emt 0:00:00]} 41. Bf8 {[%emt 0:00:47]} Be4 {[%emt 0:02:08]} 42. Be7 {[%emt 0:00:14]} Bd3 {[%emt 0:01:36]} 43. Bf8 {[%emt 0:00:05]} Bb1 {[%emt 0:00:34]} 44. Bb4 {[%emt 0:00:12]} Be4 {[%emt 0:00:36]} 45. Bf8 {[%emt 0:00:09]} a5 {[%emt 0:00:54]} 46. Be7 {[%emt 0:00:05]} b5 {[%emt 0:00:25]} 47. Bc5 {[%emt 0:00:30]} Kb2 {[%emt 0:01:34]} 48. Bd6 {[%emt 0:00:20]} Bf3 {[%emt 0:00:46]} 49. Bc7 {[%emt 0:06:27]} b4 {[%emt 0:14:26]} 50. axb4 {[%emt 0:00:07]} axb4 {[%emt 0:00:20]} 51. cxb4 {[%emt 0:00:19]} c3+ {[%emt 0:00:05]} 52. Kd3 {[%emt 0:00:59]} Be4+ {[%emt 0:01:18]} 53. Ke2 {[%emt 0:00:11]} c2 {[%emt 0:01:30]} 54. Bf4 {[%emt 0:00:09]} Kc3 {[%emt 0:00:37]} 55. f3 {[%emt 0:12:10]} Bd3+ {[%emt 0:00:11]} 56. Ke1 {[%emt 0:00:10]} Bb5 {[%emt 0:08:18]} 57. Be3 {[%emt 0:06:24]} Kb2 {[%emt 0:03:31]} 58. g4 {[%emt 0:00:29]} fxg4 {[%emt 0:00:04]} 59. fxg4 {[%emt 0:00:04]} Be8 {[%emt 0:00:34]} 60. Kf2 {[%emt 0:03:06]} c1=Q {[%emt 0:00:18]} 61. Bxc1+ {[%emt 0:00:17]} Kxc1 62. Ke3 {[%emt 0:00:25]} Kc2 {[%emt 0:00:32]} 63. Kf4 {[%emt 0:00:45]} Kc3 {[%emt 0:00:35]} 64. Ke5 {[%emt 0:02:57]} Kc4 {[%emt 0:01:23]} 65. g5 {[%emt 0:03:12]} Ba4 {[%emt 0:00:47]} 66. Kf6 {[%emt 0:01:12]} Bc2 {[%emt 0:00:21]} 67. Ke6 {[%emt 0:01:39]} Be4 {[%emt 0:00:40]} 68. b5 {[%emt 0:05:05]} Kxb5 {[%emt 0:00:06]} 69. h5 {[%emt 0:00:12]} gxh5 {[%emt 0:00:05]} 70. g6 {[%emt 0:00:00]} Kc4 {[%emt 0:00:43]} 71. g7 {[%emt 0:00:14]} Bh7 {[%emt 0:00:08]} 72. Ke5 {[%emt 0:00:15]} h4 {[%emt 0:00:20]} 73. Kf4 {[%emt 0:00:08]} Kxd4 {[%emt 0:00:09]} 74. Kg4 {[%emt 0:00:05]} Ke3 {[%emt 0:00:13]} 75. Kxh4 {[%emt 0:00:03]} d4 {[%emt 0:00:05]} 76. Kg5 {[%emt 0:00:28]} d3 {[%emt 0:00:09]} 77. Kh6 {[%emt 0:00:03]} Bg8 {[%emt 0:00:05]} 78. Kg6 {[%emt 0:00:02]} d2 {[%emt 0:00:11]} 79. Kf6 {[%emt 0:00:01]} d1=Q {[%emt 0:00:09]} 80. Ke7 {[%emt 0:00:01]} Ke4 81. Ke8 {[%emt 0:00:07]} Ke5 {[%emt 0:00:48]} 82. Ke7 {[%emt 0:00:04]} Qd6+ {[%emt 0:00:15]} 83. Ke8 {[%emt 0:00:05]} Qc7 1/2-1/2

[Event "EYCC Open-U12 2019"]
[Site "Bratislava"]
[Date "2019.08.09"]
[Round "8.9"]
[White "Meers, Hubert"]
[Black "Navumenka, Mikhei"]
[Result "1/2-1/2"]
[ECO "C03"]
[WhiteElo "2141"]
[BlackElo "2196"]
[Annotator "NA"]
[PlyCount "120"]
[EventDate "2019.08.02"]
[EventType "swiss"]
[EventCountry "SVK"]
[SourceTitle "playchess.com"]
[Source "ChessBase"]
[SourceQuality "1"]
[TimeControl "40/5400+30:1800+30"]

1. e4 {[%emt 0:00:00]} e6 {[%emt 0:00:00]} 2. d4 {[%emt 0:00:00]} d5 {[%emt 0:00:00]} 3. Nd2 {[%emt 0:00:00]} Be7 {[%emt 0:00:00]} 4. Bd3 {[%emt 0:00:12]} c5 {[%emt 0:00:07]} 5. dxc5 {[%emt 0:00:35]} Nf6 {[%emt 0:00:09]} 6. Qe2 {[%emt 0:00:24]} Qc7 {[%emt 0:17:22]} 7. Ngf3 {[%emt 0:02:37]} dxe4 {[%emt 0:01:40]} 8. Nxe4 {[%emt 0:00:09]} Nxe4 {[%emt 0:01:52]} 9. Bxe4 {[%emt 0:01:08]} Nd7 {[%emt 0:00:12]} 10. c6 {[%emt 0:08:12]} bxc6 {[%emt 0:00:45]} 11. O-O {[%emt 0:00:56]} O-O {[%emt 0:09:37]} 12. Nd4 {[%emt 0:09:02]} Bb7 {[%emt 0:04:29]} 13. Qf3 {[%emt 0:03:52]} Rac8 {[%emt 0:06:19]} 14. Bf4 {[%emt 0:03:59]} Bd6 {[%emt 0:06:42]} 15. Bxd6 {[%emt 0:01:31]} Qxd6 {[%emt 0:00:02]} 16. Rad1 {[%emt 0:02:00]} Qe7 {[%emt 0:10:07]} 17. Rfe1 {[%emt 0:04:07]} Nf6 {[%emt 0:04:27]} 18. Nb3 {[%emt 0:22:42]} Nxe4 {[%emt 0:09:31]} 19. Qxe4 {[%emt 0:00:06]} c5 {[%emt 0:00:10]} 20. Qe3 {[%emt 0:00:42]} c4 {[%emt 0:02:05]} 21. Nd4 {[%emt 0:00:23]} Rc5 {[%emt 0:00:53]} 22. Re2 {[%emt 0:05:17]} Ra5 {[%emt 0:03:21]} 23. a3 {[%emt 0:03:09]} g6 {[%emt 0:00:59]} 24. Red2 {[%emt 0:01:39]} Qf6 {[%emt 0:02:06]} 25. c3 {[%emt 0:06:58]} Re5 {[%emt 0:01:39]} 26. Qh3 {[%emt 0:01:56]} Rh5 {[%emt 0:00:49]} 27. Qe3 {[%emt 0:00:09]} Re5 {[%emt 0:00:04]} 28. Qh3 {[%emt 0:00:07]} Qf4 {[%emt 0:01:09]} 29. Ne2 {[%emt 0:06:11]} Qe4 {[%emt 0:00:51]} 30. f4 {[%emt 0:00:16]} Rh5 {[%emt 0:00:49]} 31. Qg3 {[%emt 0:00:05]} e5 {[%emt 0:00:43]} 32. Qf2 {[%emt 0:03:24]} exf4 {[%emt 0:02:28]} 33. Rd4 {[%emt 0:00:23]} Qc6 {[%emt 0:01:09]} 34. Rxf4 {[%emt 0:03:21]} Rg5 {[%emt 0:00:42]} 35. Ng3 {[%emt 0:00:07]} Re5 {[%emt 0:04:42]} 36. Rf1 {[%emt 0:01:39]} f5 {[%emt 0:00:41]} 37. Ne2 {[%emt 0:05:13]} Qxg2+ {[%emt 0:03:38]} 38. Qxg2 {[%emt 0:00:05]} Bxg2 {[%emt 0:00:08]} 39. Kxg2 {[%emt 0:00:19]} Rxe2+ {[%emt 0:00:02]} 40. R1f2 {[%emt 0:00:00]} Rxf2+ {[%emt 0:00:00]} 41. Kxf2 {[%emt 0:00:12]} Rc8 {[%emt 0:04:39]} 42. Rd4 {[%emt 0:13:06]} Rc7 {[%emt 0:00:10]} 43. Kf3 {[%emt 0:00:06]} Kf7 {[%emt 0:00:56]} 44. Kf4 {[%emt 0:00:18]} Ke6 {[%emt 0:00:44]} 45. h4 {[%emt 0:03:26]} Rc8 {[%emt 0:03:36]} 46. Kg5 {[%emt 0:02:53]} Rc7 {[%emt 0:01:19]} 47. Kf4 {[%emt 0:01:35]} a5 {[%emt 0:04:25]} 48. a4 {[%emt 0:04:51]} h6 {[%emt 0:10:07]} 49. Rd8 {[%emt 0:02:42]} Rb7 {[%emt 0:01:41]} 50. Rh8 {[%emt 0:03:32]} Rxb2 {[%emt 0:09:02]} 51. Rxh6 {[%emt 0:00:06]} Rg2 {[%emt 0:00:34]} 52. h5 {[%emt 0:01:26]} Kf6 {[%emt 0:01:09]} 53. hxg6 {[%emt 0:00:10]} Rxg6 {[%emt 0:00:57]} 54. Rh8 {[%emt 0:00:09]} Rg1 {[%emt 0:00:28]} 55. Rc8 {[%emt 0:00:16]} Rg4+ {[%emt 0:01:04]} 56. Kf3 {[%emt 0:00:08]} Rh4 {[%emt 0:00:11]} 57. Kg3 {[%emt 0:00:46]} Re4 {[%emt 0:00:31]} 58. Kf3 {[%emt 0:00:04]} Kg6 {[%emt 0:00:25]} 59. Rc5 {[%emt 0:02:31]} Kg5 {[%emt 0:00:05]} 60. Rxa5 {[%emt 0:00:08]} Rh4 {[%emt 0:00:47] Ke4} 1/2-1/2